{"text_format":"3","workbook":"xlsx","n_sheets":1,"sheets":["SPECIFICATION_UNPRICED"],"not_rendered":{"defined_names":2},"read":"whole","date_system":"1900"}

{"sheet":"SPECIFICATION_UNPRICED","index":0,"n_rows":532,"n_cols":7,"rows_kept":532,"merged":[[0,0,0,4],[1,0,1,4],[2,0,2,4],[3,0,3,4],[4,0,4,4],[6,0,6,4],[7,0,7,4],[8,0,8,4],[11,0,11,4],[16,0,16,4],[20,0,20,4],[23,0,23,4],[29,0,29,4],[30,0,30,4],[37,0,37,4],[38,0,38,4],[39,0,39,4],[40,0,40,4],[42,0,42,4],[44,0,44,4],[59,0,59,4],[60,0,60,4],[64,0,64,4],[65,0,65,4],[66,0,66,4],[68,0,68,4],[71,0,71,4],[72,0,72,4],[73,0,73,4],[74,0,74,4],[76,0,76,4],[95,0,95,4],[100,0,100,4],[101,0,101,4],[102,0,102,4],[108,0,108,4],[109,0,109,4],[113,0,113,4],[114,0,114,4],[117,0,117,4],[118,0,118,4],[119,0,119,4],[120,0,120,4],[131,0,131,4],[132,0,132,4],[133,0,133,4],[137,0,137,4],[138,0,138,4],[139,0,139,4],[142,0,142,4],[143,0,143,4],[145,0,145,4],[146,0,146,4],[153,0,153,4],[155,0,155,4],[165,0,165,4],[166,0,166,4],[169,0,169,4],[172,0,172,4],[173,0,173,4],[174,0,174,4],[181,0,181,4],[185,0,185,4],[187,0,187,4],[188,0,188,4],[190,0,190,4],[194,0,194,4],[195,0,195,4],[196,0,196,4],[203,0,203,4],[204,0,204,4],[207,0,207,4],[215,0,215,4],[218,0,218,4],[221,0,221,4],[222,0,222,4],[231,0,231,4],[232,0,232,4],[234,0,234,4],[235,0,235,4],[238,0,238,4],[240,0,240,4],[241,0,241,4],[250,0,250,4],[252,0,252,4],[256,0,256,4],[257,0,257,4],[258,0,258,4],[263,0,263,4],[272,0,272,4],[281,0,281,4],[293,0,293,4],[294,0,294,4],[296,0,296,4],[298,0,298,4],[300,0,300,4],[303,0,303,4],[305,0,305,4],[317,0,317,4],[326,0,326,4],[335,0,335,4],[340,0,340,4],[346,0,346,4],[347,0,347,4],[351,0,351,4],[352,0,352,4],[358,0,358,4],[370,0,370,4],[379,0,379,4],[382,0,382,4],[389,0,389,4],[392,0,392,4],[395,0,395,4],[400,0,400,4],[403,0,403,4],[404,0,404,4],[405,0,405,4],[406,0,406,4],[407,0,407,4],[415,0,415,4],[417,0,417,4],[418,0,418,4],[421,0,421,3],[422,0,422,4],[423,0,423,4],[424,0,424,4],[425,0,425,4],[426,0,426,4],[429,0,429,4],[431,0,431,4],[433,0,433,4],[435,0,435,4],[440,0,440,4],[442,0,442,4],[444,0,444,4],[447,0,447,4],[448,0,448,4],[454,0,454,4],[455,0,455,4],[458,0,458,4],[461,0,461,4],[462,0,462,4],[463,0,463,4],[467,0,467,4],[468,0,468,4],[469,0,469,4],[470,0,470,4],[473,0,473,4],[475,0,475,4],[478,0,478,4],[483,0,483,4],[488,0,488,4],[493,0,493,4],[497,0,497,4],[498,0,498,4],[499,0,499,4],[500,0,500,4],[501,0,501,4],[502,0,502,4],[503,0,503,3],[504,0,504,3],[505,0,505,3],[506,0,506,3],[507,0,507,3],[508,0,508,3],[509,0,509,3],[510,0,510,3],[511,0,511,3],[512,0,512,3],[513,0,513,3],[514,0,514,3],[515,0,515,3],[516,0,516,3],[517,0,517,3],[518,0,518,3],[519,0,519,3],[520,0,520,3],[521,0,521,3],[522,0,522,3],[523,0,523,3],[524,0,524,3],[525,0,525,4],[526,0,526,4],[527,0,528,4],[529,0,529,4],[530,0,530,4],[531,1,531,4]]}
["SPECIFICATION - UNPRICED"]
["FRANCES BAARD DISTRICT OFFICE - PEME"]
["FENCING"]
["SUPPLY AND INSTALL A HIGH SECURITY FENCE"]
[]
["SPECIFICATION","UNIT","QTY","Unit Price","Amount"]
[]
[" "]
["EARTHWORKS"]
["DEMOLITIONS AND SITE CLEARANCE"]
["Carefully cut and remove the existing 2000mm high steel palisade devils fork fence with concrete bases of posts including the 400mm (h) flat wrap with straining wires from all the posts. Also remove the existing one pedestrian and three sliding motor gates. Carefully store panels and posts with gates on site for the re-use by the Department.","m",1400,{"v":65,"d":"R65"},{"$f":"C11*D11","v":{"v":91000,"d":"R91,000"}}]
["PREPARATION AND CLEANING OF SITE ON COMPLETION"]
["The line of the fence shall be thoroughly cleaned for a distance of 1 meter on either side of the centre line of the fence; any irregularities in the ground must be removed in order that the fence may follow the general contour of the ground. Clearing shall include the removal of all trees not exceeding 200mm in girth (pruning and shaping of trees), shrubs and rubble, debris, grass, bush which may interfere with the erection of the fence. Slumps within the cleared area must be removed. The bottom of the fence shall be an even distance of 20mm above the ground level. All cleared rubble shall be dumped in municipal refuse dumps.","m²",2800,{"v":25,"d":"R25"},{"$f":"C13*D13","v":{"v":70000,"d":"R70,000"}}]
[]
["Take up and remove existing precast 500 x 500 x 0.5mm thick concrete slabs of walkways to stockpile for re-use.","m²",100,{"v":45,"d":"R45"},{"$f":"C15*D15","v":{"v":4500,"d":"R4,500"}}]
["Digging up and removing of tree roots under walkway which will be directed on site. Level and compact ground surfaces to receive existing concrete slabs.","m²",100,{"v":100,"d":"R100"},{"v":10000,"d":"R10,000"}]
["EXCAVATIONS"]
["Excavations and trenching for cables and waterpipes must be at least 500mm deep and 300mm wide. Trenching must be properly dug to ensure proper execution of the work.  The trench must be perfectly straight in line and run at right angles from point to point.","m³",150,{"v":360,"d":"R360"},{"$f":"C18*D18","v":{"v":54000,"d":"R54,000"}}]
["Excavate 400mm x 400mm x 600mm deep holes in ordinary earth for posts. ","m³",45,{"v":360,"d":"R360"},{"$f":"C19*D19","v":{"v":16200,"d":"R16,200"}}]
["Excavate 300mm wide x 300mm deep x 19m long in ordinary earth trench for three sliding gate tracks.","m³",2,{"v":360,"d":"R360"},{"v":720,"d":"R720"}]
["EXTRA OVER EXCAVATIONS"]
["Soft Rock","m³",30,{"v":400,"d":"R400"},{"$f":"C22*D22","v":{"v":12000,"d":"R12,000"}}]
["Hard Rock","m³",50,{"v":500,"d":"R500"},{"v":25000,"d":"R25,000"}]
["FILLING"]
["Place 100mm river sand blinding; laying 50mm and 32mm high density polyethylene pipes (class 6) measured elsewhere.","m³",30,{"v":370,"d":"R370"},{"$f":"C25*D25","v":{"v":11100,"d":"R11,100"}}]
["Place 100mm river sand blanket;  laying 50mm and 20mm high density polyethylene pipes (class 6) measured elsewhere.","m³",30,{"v":370,"d":"R370"},{"v":11100,"d":"R11,100"}]
["Backfill trench and compact to a density of not less than 90 per cent Modified AASHTO.The backfill around cables and waterpipes shall not contain any sharp objects.","m³",135,{"v":150,"d":"R150"},{"v":20250,"d":"R20,250"}]
["Removal  of rubble small loads","m³",10,0,{"$f":"C28*D28","v":0}]
["SUB TOTAL",{"$nulls":3},{"v":147950,"d":"R147,950"}]
[]
["CONCRETE WORK"]
["Cast new 450mm wide x 8000mm lenght x 200mm deep concrete foundation strip footing in Class C- concrete (4:3:1) with a breaking strength of 25MPA. The foundation must be finished off to the height of ±100mm underneath the natural ground level. The foundation must be cast neatly in straight lines.","m³",1,{"v":2500,"d":"R2,500"},{"$f":"C32*D32","v":{"v":2500,"d":"R2,500"}}]
["Cast a new 3000mm wide x 3000mm lenght x 150mm thick concrete floor slab with a minimum compression strength of 25 MPa /19mm stone within 28 days.","m³",2,{"v":2500,"d":"R2,500"},{"v":5000,"d":"R5,000"}]
["Cast concrete in base for intermediate post, size 400 x 400 x 600mm, with chamfered top surface projecting 20mm above surrounding ground level, including any necessary formwork, etc. with a minimum compression strength of 25 MPa /19mm stone within 28 days.","m³",45,{"v":2500,"d":"R2,500"},{"v":112500,"d":"R112,500"}]
["Cast concrete in plinth under gate, size 300mm wide x 300mm deep x 19m long, with wood floated top surface at ground level, including any necessary formwork, etc. with a minimum compression strength of 30 MPa /19mm stone within 28 days.","m³",2,{"v":2500,"d":"R2,500"},{"v":5000,"d":"R5,000"}]
["Cast in panels, a new 100mm thick  concrete surface bed in class c-concrete with a concrete strength not less than 25Mpa.Finish off concrete surface with a wood float and steel trowel to a true, smooth and even surface, ready for the laying of vinyl floor tiles elsewhere specified.","m³",13,{"v":2500,"d":"R2,500"},{"v":32500,"d":"R32,500"}]
["SUB TOTAL",{"$nulls":3},{"v":5000,"d":"R5,000"}]
[]
["MASONRY"]
["BRICKWORK"]
["SUPERSTRUCTURE:CONSTRUCTION OF A WATER PURIFICATION/PUMP ROOM"]
["Supply and build a new valve chamber with a 450mm x 450mm light duty single seal manhole cover with frame. Build a valve chamber of six course half brick walls in stretcher bond with NFX bricks in Class11 mortar, which should be level with the natural ground surfaces. Location of new chamber will be directed on site.","no.",7,{"v":3500,"d":"R3,500"},{"$f":"C42*D42","v":{"v":24500,"d":"R24,500"}}]
["CONSTRUCT NEW TOILET CUBICLES AND PARTITION WALL FOR URINALS"]
["Supply and build a new valve chamber with a 450mm x 600mm light duty single seal manhole cover with frame. Build a valve chamber of six course half brick walls in stretcher bond with NFX bricks in Class11 mortar, which should be level with the natural ground surfaces. Location of new chamber will be directed on site.","no.",1,{"v":4000,"d":"R4,000"},{"$f":"C44*D44","v":{"v":4000,"d":"R4,000"}}]
["PAVING"]
["SUPPLY AND LAY NEW PAVING"]
["LEVELING"]
["Level and prepare the paving areas. Note: The contractor is responsible for all leveling of paving area. The ground shall be graded with a fall   . \n\n\n","m²",60,{"v":50,"d":"R50"},{"$f":"C48*D48","v":{"v":3000,"d":"R3,000"}}]
["NEW APPROVED FILLING"]
["Filling underneath new paving shall be clean, approved earth, as per departmental standards and as approved by the representative agent.","m²",60,{"v":60,"d":"R60"},{"$f":"C50*D50","v":{"v":3600,"d":"R3,600"}}]
["COMPACTION"]
["The paving area must be compacted with a mechanical compactor to the approval of the departmental representative.                                     ","m²",60,{"v":50,"d":"R50"},{"$f":"C52*D52","v":{"v":3000,"d":"R3,000"}}]
["SOIL POISONING/TERMITES/WEED KILLER"]
["Spray with SABS approved weed killer on the compacted earth at a rate of 4g/m².\nA certificate of compliance of a registered pest controller must be submitted.                                                                     \n","m²",60,{"v":35,"d":"R35"},{"$f":"C54*D54","v":{"v":2100,"d":"R2,100"}}]
["DAMP PROOF COURSE"]
["Provide and place a course of PVC sheeting- 250 micron over the compacted area. Note: all joints of sheeting are to overlap at least 200mm and be sealed with approved sealer to match PVC sheeting. No damaged sheeting will be accepted.\n","m²",60,{"v":35,"d":"R35"},{"$f":"C56*D56","v":{"v":2100,"d":"R2,100"}}]
["PROVIDE AND LAY NEW 60MM THICK CEMENT PAVERS"]
["Supply and place a 25mm thick clean river sand screed over the paving area and compact Provide and lay new 60mm thick SABS approved standard interlock gray paving blocks. The paving must be laid, compacted with the gap and joint filling neatly done in 3:1 cement mortar. Lines shall be set up at right angles to control alignment of the paving bricks. Joint width shall not exceed 5mm. Whole bricks shall be laid first. Closure blocks must have a dimension of least 30mm of size or cut or splits from whole blocks shall be fitted into gaps around the perimeter and around installations, such as manholes. Note: all exposed edging shall be finished with a brick on edge, securely laid in a cement mortar of 3:1 which is 300mm wide and 50mm thick. River sand shall be broomed into all the joints until they are full and sufficient passes shall be made to settle the joint filling. On completion all excess sand shall be broomed off and disposed of. Ponding and damaged caused by and during compaction shall be made good by the contractor at his or her own expense.                                                               \n","m²",60,{"v":500,"d":"R500"},{"$f":"C58*D58","v":{"v":30000,"d":"R30,000"}}]
["SUB TOTAL",{"$nulls":3},{"v":72300,"d":"R72,300"}]
[]
["WATERPROOFING"]
["One layer of 375 micron black polyethylene embossed damp proof course in walls","m",30,{"v":40,"d":"R40"},{"$f":"C62*D62","v":{"v":1200,"d":"R1,200"}}]
["Lay new damp proof sheeting (as specified in clause 7.2 of s.m.m.) in an approved manner, prior to the casting of new concrete surface bed.","m²",168,{"v":40,"d":"R40"},{"v":6720,"d":"R6,720"}]
["SUB TOTAL",{"$nulls":3},{"$f":"SUM(E62:E63)","v":{"v":7920,"d":"R7,920"}}]
[]
["ROOF COVERING"]
["REPAIR ROOF LEAKAGES"]
["Thoroughly examine roof surfaces of all school buildings. The contractor is to pay special attention internally where watermarks are evident on ceilings to locate leaks. All loose, missing or worn out roof screws are to be replaced, plug screw holes using an approved wood glue and fit new and longer roof screws including new washers and under cup washers. Holes in sheets are to be soldered. Similarly examine all ridging and make good where defective sections are located. Areas of roof that have been previously sealed must be carefully re-examined and all defective membranes should be removed and repaired as mentioned above. In addition to this, the contractor is to provide the Department with a written guarantee equivalent to one year starting from the date of final delivery. ","m²",3418,{"v":30,"d":"R30"},{"$f":"C68*D68","v":{"v":102540,"d":"R102,540"}}]
["SUPPLY AND FIT NEW IBR ROOF SHEETS "]
["Supply and install 0.58 mm thick standard IBR  galvanized roof sheets to newly built covered walkway: Width : 2m and  Length: 30m and replace missing roof sheets to existing covered walkway. IBR sheets must be laid with one corrugation side lap with the narrow flute uppermost and shall be fixed through the crest of alternate flutes to purlins. All fixing holes should be drilled 1.5mm larger than the diameter of the screw, using 65mm Top speed or Tek screws into purlins and be spaced at approximately 350mm centres horizontally. NOTE: Any sheets which are attacked by white rust before being fixed in position, are to be immediately removed from the site.\n","m²",50,{"v":300,"d":"R300"},{"$f":"C70*D70","v":{"v":15000,"d":"R15,000"}}]
["SUB TOTAL",{"$nulls":3},{"v":117540,"d":"R117,540"}]
[]
["CARPENTRY AND JOINERY"]
["REPAIRS TO TIMBER ROOF TRUSS CONSTRUCTION"]
["Where components of the wooden roof construction are replaced they must be taken out and removed and replaced in “Merchantable Grade” South African Pine complying with the requirements of SABS Specifications for Stress-Graded Softwood General Structural Timber, S.A.B.S.563.During the replacement of components of the roof construction the rest of the roof construction must be supported. Where roofs have sagged they must be realigned including the supply of additional bearers, struts, etc. All roof timbers are to be treated in accordance with the requirements for Class C preservatives as laid down in the SABS Code of Practice for Preservative Treatment of Timber, S.A.B.S.05. Roof trusses are to be properly constructed, lapped at all junctions and spiked together with ends of nails crimped over and each intersection bolted with 10mm diameter bolts. Feet of trusses are to be secured with 1,6mm galvanized mild steel straps 38mm wide and 900mm girth wrapped around roof timbers and spiked to plates. Purlins must be in long lengths continuous over at least three rafters, set on edge, securely spiked to rafters and each intersection of purlin and rafter must be tied together with and including 4mm diameter galvanized wire tie 750mm long wrapped around rafter and purlin, tightly drawn up and twisted.\n"]
["Replace existing defective 50mm x 76mm purlins with new including eave purlins of existing roof trusses at all school buildings.","m",890,{"v":80,"d":"R80"},{"v":71200,"d":"R71,200"}]
["TIMBER DOORS, FRAMES, ETC."]
["Plane entrance timber door which should open and close freely at classroom no. 4 and 5.","no.",2,{"v":65,"d":"R65"},{"$f":"C78*D78","v":{"v":130,"d":"R130"}}]
["Repair damaged entrance timber door, cut out damaged wood  of door lock and replace with new. Leave door perfectly operational, open and close freely. Location: Classroom no. 3 and store room adjacent educator's toilet","no.",2,{"v":250,"d":"R250"},{"v":500,"d":"R500"}]
["Repair damaged timber door frame, cut out damaged wood  of striker plate area and replace with new. Leave door perfectly operational, open and close freely. Location: Feeding Scheme Kitchen; Classroom no. 2, store room adjacent to educator's toilet, classroom no. 8 , 9, 10, 11 and 12.","no.",8,{"v":250,"d":"R250"},{"v":2000,"d":"R2,000"}]
["Break up and remove wooden toilet cubicle partitions and cart away from site. Location: Girl's Toilets for Grade 1,2,3,4,5 and 6.","m²",40,{"v":65,"d":"R65"},{"v":2600,"d":"R2,600"}]
["Remove wall mounted timber benches - 8m and coat hook - 2m at boys toilets and store on site.","m",10,{"v":35,"d":"R35"},{"v":350,"d":"R350"}]
["Supply and hang on new two mild steel hinged using 40mm mild steel wood screws, new 800 x 2000mm Semi-Solid Sapele Veneered doors at boys toilet cubicles. Neatly hung with a 3mm gap all round. Doors are to open and close freely without any obstruction and should not be hinge bound in any way.  ","no.",8,{"v":1500,"d":"R1,500"},{"v":12000,"d":"R12,000"}]
["Replace damaged entrance timber doors with a new single leaf meranti hardwood F.L and B open back door including weatherboard, hung on new hinges using new screws of a suitable length. New door are to be fitted, with an even gap of 2mm around the outside of door. Supply and fit new hardwood door specified and leave door to open and close freely without being hinge bound on completion. "]
["44 x 800 x 2015mm meranti timber door - Location: Gents and ladies educator toilets, storeroom no. 17","no.",2,{"v":3500,"d":"R3,500"},{"$f":"C85*D85","v":{"v":7000,"d":"R7,000"}}]
["44 x 800 x 2020mm meranti timber door - Location: Girls ablution block","no.",1,{"v":3500,"d":"R3,500"},{"v":3500,"d":"R3,500"}]
["44 x 800 x 2050mm meranti timber door - Location: Boys ablution block","no.",1,{"v":3500,"d":"R3,500"},{"v":3500,"d":"R3,500"}]
["44 x 880 x 2100mm meranti timber door - Location: Music room no. 32","no.",1,{"v":3500,"d":"R3,500"},{"v":3500,"d":"R3,500"}]
["44 x 900 x 2020mm meranti timber door - Location: Classroom no. 30,9,10,11 and 12.","no.",1,{"v":3500,"d":"R3,500"},{"v":3500,"d":"R3,500"}]
["44 x 905 x 2010mm meranti timber door - Location: Classroom no. 29,9,10,11 and 12.","no.",1,{"v":3500,"d":"R3,500"},{"v":3500,"d":"R3,500"}]
["44 x 900 x 2100mm meranti timber door - Location: Classroom no. 24,25,26,20,18.","no.",1,{"v":3500,"d":"R3,500"},{"v":3500,"d":"R3,500"}]
["44 x 770 x 2150mm meranti timber double rebate door - Location: Classroom no. 27 , main entrance of room 12 and hall.","no.",7,{"v":7000,"d":"R7,000"},{"v":49000,"d":"R49,000"}]
["Supply and install in approved manner new 75mm meranti skirtings and  32mm quadrants complete in classrooms which will be directed on site.","m",360,{"v":65,"d":"R65"},{"v":23400,"d":"R23,400"}]
["Replace  defective 32mm meranti quadrants with new at Library.","m",54,{"v":35,"d":"R35"},{"v":1890,"d":"R1,890"}]
[]
["PINNING BOARDS, WRITING BOARDS, PROJECTION SCREENS, ETC - \"VITREX\" OR SIMILAR APPROVED"]
["Supply and install a screen pull down 2440 x 2440mm at classroom no. 24.","no.",1,{"v":7500,"d":"R7,500"},{"$f":"C97*D97","v":{"v":7500,"d":"R7,500"}}]
["Supply and install a ceiling mount bracket projector 430-650mm at classroom no.24.","no.",1,{"v":900,"d":"R900"},{"$f":"C98*D98","v":{"v":900,"d":"R900"}}]
["Supply and fit to brickwork a new SABS approved 2000 x 1200mm Carpet pinning board surface which will be directed on site.","no.",2,{"v":1800,"d":"R1,800"},{"$f":"C99*D99","v":{"v":3600,"d":"R3,600"}}]
["SUB TOTAL",{"$nulls":3},{"v":195600,"d":"R195,600"}]
[]
["CEILINGS, PARTITIONS AND ACCESS FLOORING"]
["NAILED UP CEILING BOARDS"]
["Take down damaged ceiling boards compleet including cornice and coverstrips which will be directed on site and cart away from site. ","m²",2422,{"v":45,"d":"R45"},{"$f":"C104*D104","v":{"v":108990,"d":"R108,990"}}]
["Supply and install new 6.4mm thick \"Gypsum\" plaster board, install with longer lenghts to suit room, configurations with pre-painted \"H\" profile cover strips including 75mm cove cornice and fixed at right angles to timber brandering with all necessary accesories to strict manufacturer's specifications. Location: As mentioned above.","m²",2422,{"v":150,"d":"R150"},{"v":363300,"d":"R363,300"}]
["Supply and install new 6.4mm thick \"Gypsum\" plaster board with 38x38mm brandering, install with longer lenghts to suit room, configurations with pre-painted \"H\" profile cover strips including 75mm cove cornice and fixed at right angles to timber brandering with all necessary accesories to strict manufacturer's specifications. Location: As mentioned above. New water pump room","m²",4,{"v":160,"d":"R160"},{"v":640,"d":"R640"}]
["SUB TOTAL",{"$nulls":3},{"v":472290,"d":"R472,290"}]
[]
["FLOOR COVERINGS, WALL LININGS, ETC."]
["SUPPLY AND LAY NEW VINYL FLOOR TILES"]
["Remove defective vinyl floor tiles which will be directed on site and cart away from site. ","m²",860,{"v":45,"d":"R45"},{"$f":"C111*D111","v":{"v":38700,"d":"R38,700"}}]
["Remove defective fitted carpeting and cart away from site. Location: Staffroom ","m²",48,{"v":15,"d":"R15"},{"v":720,"d":"R720"}]
["Sand or level any imperfections on concrete subfloor. Filling in dips or scars with a self-leveling compound, patching concrete, or thinset mortar or sanding down bumps in the concrete. Use your level to check for subfloor imperfections. Supply and lay flexible vinyl (PVC) floor tiles 300x300x2.5mm thick, shall comply with the requirements of SABS 786. The flooring shall be of marbled pattern and of approved colour and of thickness specified. Vinyl tiles shall be laid in strict accordance with the manufacturer’s instructions on a perfectly dry and clean screeded surface using an adhesive supplied or recommended by the manufacturer of flooring material and rolled with a suitable roller to ensure complete adhesion of the material. The flooring shall be cut where required and neatly fitted against floors, thresholds, etc. Apply two sealer coats and one coat of polish. ","m²",860,{"v":300,"d":"R300"},{"v":258000,"d":"R258,000"}]
[]
["SUPPLY AND FIT A RUBBER NON-SLIP FLOOR TAPE"]
["Supply and fit 500mm (L) x 100mm (W) self-adhesive  dimpled rubber black non-slip tape to floor and concrete ramp for safe social distance spacing of 1500mm apart at  the reception office of office block T, which will be directed on site.","m",5,0,{"$f":"C116*D116","v":0}]
["SUB TOTAL",{"$nulls":3},{"v":297420,"d":"R297,420"}]
[]
["IRONMONGAREY"]
[]
["LOCKS AND FURNITURE"]
["Replace timber door lock with a new SABS approved 3 lever mortice door lock, supplied complete with C.P furniture and two keys per lock. Lock are to be similar or equal to that supplied by “Solid or Union”.  Location: Classroom no.30; 24;25;26;storeroom no.17;sportsroom no.14; Music classroom no. 32 and main entrance doors at boys and girls toilets.\n","no",9,{"v":850,"d":"R850"},{"$f":"C122*D122","v":{"v":7650,"d":"R7,650"}}]
["Replace damaged rebate coversion set door lock of double rebated timber doors with new chrome plated SABS approved locks. Locks are to be similar or equal to that supplied by “Solid or Union. Location: Double timbers at room 12; classroom no.27 and at the hall.\n","no",7,{"v":1200,"d":"R1,200"},{"v":8400,"d":"R8,400"}]
["Supply and install chrome plated indicator locks for toilet cubicle doors at boys and girls toilets.","no",14,{"v":550,"d":"R550"},{"v":7700,"d":"R7,700"}]
["Supply and fit two 50mm galvanised barrel bolts per door,bolted though door with the bolt ends hammered to prevent the nuts to be removed.","no",14,{"v":350,"d":"R350"},{"v":4900,"d":"R4,900"}]
["Supply and install 50mm Brass padlock with 28mm standard hardened steel shackle similar to “Union” or “Yale”. ","no",24,{"v":400,"d":"R400"},{"v":9600,"d":"R9,600"}]
["Where missing supply and fit new yellow metal window spring catches. Fit catches to window frames with screw provided to ensure that all new catches are fully operational on completion. Location: Classroom no.20 (4) ; class no.18 (6) ;  class no. 25 (4) ;  class no. 26 (3) ;  class no. 27 (5)","no",22,{"v":400,"d":"R400"},{"v":8800,"d":"R8,800"}]
["To tamper proof door lock , supply and fit a 9mm (W) x 40mm (L) x 3mm thick mild steel plates, flush to both sides of existing timber door, fastened with four black galvanised M8x 50mm long cup square bolts and nuts.Location: Storeroom no. 34 , classroom no. 18,20,24,,25 and 26","no",6,{"v":500,"d":"R500"},{"v":3000,"d":"R3,000"}]
["Provide and fit a new approved chromium-plated  toilet paper holder, fixed to wall with 32mm chromium plated round headed screws or similar approved, to plugs in wall at boys and girl’s toilets.","no",14,{"v":350,"d":"R350"},{"v":4900,"d":"R4,900"}]
["Supply and fit where missing black aluminium window frame handles (right handed), similar to existing window handles at the mobile ECD classroom.","no",6,{"v":500,"d":"R500"},{"v":3000,"d":"R3,000"}]
["Supply and install new 38mm rubber door stop plugged to floor in new toilet cubicles at boys and girls toilets.","no",8,{"v":100,"d":"R100"},{"v":800,"d":"R800"}]
[]
["METAL KITCHEN CUPBOARD"]
["SUPPLY AND INSTALL INDUSTRIAL METAL KITCHEN CUPBOARD"]
["Supply and install a 900mm (H) x 1200mm (L) white powder coated industrial steel cupboard with sliding doors and shelf at Feeding Scheme Kitchen.\n","no",3,{"v":2500,"d":"R2,500"},{"$f":"C135*D135","v":{"v":7500,"d":"R7,500"}}]
[]
[]
[]
[]
["LOCKERS"]
["Supply and install an industrial type steel lockable single locker, 2 louvered doors with standard epoxy powder coated finish. Overall size 1800 height x 300 width x 450mm depth. ","no",15,0,{"$f":"C141*D141","v":0}]
["SUB TOTAL",{"$nulls":3},{"v":54950,"d":"R54,950"}]
[]
["METALWORK"]
[]
["SUPPLY AND INSTALL PRESSED STEEL DOORS AND FRAMES"]
["SUPPLY AND INSTALL A NEW ROLLER SHUTTER DOOR"]
["Supply and install a1,2mm Single rebated frames suitable for half brick walls. Door frame 813 x 2125mm high. Location: New toilet cubicles at girls and boys toilets.","no",8,{"v":1200,"d":"R1,200"},{"$f":"C148*D148","v":{"v":9600,"d":"R9,600"}}]
[]
["Remove socket outlets at existing positions at shown on site.","item",7,{"v":50,"d":"R50"},{"$f":"D150*C150","v":{"v":350,"d":"R350"}}]
[]
["Supply and install a1,2mm Single rebated frames suitable for one brick walls. Frame for door 813 x 2125mm high. Location: At new water pump room","no",1,{"v":1200,"d":"R1,200"},{"$f":"C152*D152","v":{"v":1200,"d":"R1,200"}}]
["Supply and install a 1.2mm mild steel door - 813 x 2100mm high. Location: At new water pump room.","no",1,{"v":1200,"d":"R1,200"},{"$f":"C153*D153","v":{"v":1200,"d":"R1,200"}}]
["SUPPLY AND INSTALL STEEL HARNESS FOR CISTERN"]
["Supply and fit steel harness over cistern, which is constructed of 50mm x 5mm x 200mm girth mild steel, twice bend, once drilled. Secured to brickwall with 8M coach screw.","no",14,{"v":400,"d":"R400"},{"$f":"C155*D155","v":{"v":5600,"d":"R5,600"}}]
["SUPPLY AND INSTALL NEW GRILLE GATES"]
["Take down damaged grille gates and store on site. Make good to face of brickwall where grille gates was mounted. Location: classroom no. 2, 3, 4, 5, 10, 11, 12 and feeding scheme kitchen.","no",8,{"v":65,"d":"R65"},{"$f":"C157*D157","v":{"v":520,"d":"R520"}}]
["Supply and fit new single leaf grille gates over and in openings as specified.\nSingle gate, 1100mm x 2160mm high, formed of and including 25 x 50 x 2.5mm thick rectangular hollow section outer frame and one 25 x 50 x 2.5mm thick rectangular hollow section horizontal middle rail; gate filled with and including single length vertical 12mm diameter solid bars at approximately 90mm centres, let through holes in middle rails with one end of bars let into holes in top and bottom outer frame; gate fitted with and including three 20mm diameter x 70mm long bullet hinges, one 40 x 65 x 6mm thick padlock plate once holed and  twice angle rounded and 300mm long barrel bolt guide pipes welded to outer frame(Padlock elsewhere measured). Location: Educator's toilets x 2; Learner toilets x 2; Classroom no. 29 ,25,26, 24,20,18 and water pumproom.\n","no",12,{"v":3500,"d":"R3,500"},{"v":42000,"d":"R42,000"}]
["Supply and fit new double leaf grille gates over and in openings as specified.\nDouble gate, 1830mm x 2160mm high, formed of and including 25 x 50 x 2.5mm thick rectangular hollow section outer frame and one 25 x 50 x 2.5mm thick rectangular hollow section horizontal middle rail; gate filled with and including single length vertical 12mm diameter solid bars at approximately 90mm centres, let through holes in middle rails with one end of bars let into holes in top and bottom outer frame; gate fitted with and including three 20mm diameter x 70mm long bullet hinges, one 40 x 65 x 6mm thick padlock plate once holed and  twice angle rounded and three 300mm long barrel bolt guide pipes welded to outer frame(Padlock elsewhere measured). Location: Class room no. 29, room no.12 and at hall x 4.\n","no",6,{"v":4500,"d":"R4,500"},{"v":27000,"d":"R27,000"}]
["Supply and fit new double leaf grille gates over and in openings as specified.\nDouble gate, 1346mm x 2131mm high including with a fixed panel size 1346mm wide x 1034mm high, formed of and including 25 x 50 x 2.5mm thick rectangular hollow section outer frame and one 25 x 50 x 2.5mm thick rectangular hollow section horizontal middle rail; gate filled with and including single length vertical 12mm diameter solid bars at approximately 90mm centres, let through holes in middle rails with one end of bars let into holes in top and bottom outer frame; gate fitted with and including three 20mm diameter x 70mm long bullet hinges, one 40 x 65 x 6mm thick padlock plate once holed and  twice angle rounded and three 300mm long barrel bolt guide pipes welded to outer frame(Padlock elsewhere measured). Location: At passage near boys toilets for grade 4 to 6 which will be directed on site.\n","no",1,{"v":4500,"d":"R4,500"},{"v":4500,"d":"R4,500"}]
["Supply and fit new double leaf grille gates over and in openings as specified.\nDouble gate, 1900mm x 2020mm high including with a fixed panel size 1900mm wide x 480mm high, formed of and including 25 x 50 x 2.5mm thick rectangular hollow section outer frame and one 25 x 50 x 2.5mm thick rectangular hollow section horizontal middle rail; gate filled with and including single length vertical 12mm diameter solid bars at approximately 90mm centres, let through holes in middle rails with one end of bars let into holes in top and bottom outer frame; gate fitted with and including three 20mm diameter x 70mm long bullet hinges, one 40 x 65 x 6mm thick padlock plate once holed and  twice angle rounded and three 300mm long barrel bolt guide pipes welded to outer frame(Padlock elsewhere measured). Location: Room no. 12, \n","no",1,{"v":4500,"d":"R4,500"},{"v":4500,"d":"R4,500"}]
["Supply and fit new double leaf grille gates over and in openings as specified.\nDouble gate, 3295mm x 1814mm high, formed of and including 25 x 50 x 2.5mm thick rectangular hollow section outer frame and one 25 x 50 x 2.5mm thick rectangular hollow section horizontal middle rail; gate filled with and including single length vertical 12mm diameter solid bars at approximately 90mm centres, let through holes in middle rails with one end of bars let into holes in top and bottom outer frame; gate fitted with and including three 20mm diameter x 70mm long bullet hinges, one 40 x 65 x 6mm thick padlock plate once holed and  twice angle rounded and three 300mm long barrel bolt guide pipes welded to outer frame(Padlock elsewhere measured). Location: At building block E which will be directed on site.\n","no",1,{"v":5000,"d":"R5,000"},{"v":5000,"d":"R5,000"}]
["Supply and fit new double leaf grille gates over and in openings as specified.\nDouble gate, 1830mm x 2160mm high, formed of and including 25 x 50 x 2.5mm thick rectangular hollow section outer frame and one 25 x 50 x 2.5mm thick rectangular hollow section horizontal middle rail; gate filled with 3mm wide x 3mm thick expanded metal sheeting (type number 6320G/346A) with hole sizes not exceeding 50 x 25mm and including single length vertical 12mm diameter solid bars at approximately 90mm centres, let through holes in middle rails with one end of bars let into holes in top and bottom outer frame; gate fitted with and including three 20mm diameter x 70mm long bullet hinges, one 40 x 65 x 6mm thick padlock plate once holed and  twice angle rounded and three 300mm long barrel bolt guide pipes welded to outer frame(Padlock elsewhere measured). Location: In front of hall.\n","no",3,{"v":7000,"d":"R7,000"},{"v":21000,"d":"R21,000"}]
["CONSTRUCT A COVERED WALKWAY STEEL STRUCTURE"]
["Construct a 30m long x 2m wide covered walkway steel structure similar to existing using 100mm x 50mm x20mmx 2mm thick lip channel for edge and cross purlins, double 50x50x2mm thick steel post including 2mm thick 200x200mm base plates. Concrete footings for steel post will have a concrete strenght of 25Mpa.Walkways will have a hight of 2.4m and will be covered with 0.58mm thich galvanized IBR roof sheets which are measured elsewhere.","Item",1,{"v":45000,"d":"R45,000"},{"v":45000,"d":"R45,000"}]
["OTHER METALS"]
["ALUMINIUM WINDOWS, DOORS, ETC."]
["Repair existing aluminium frame door which should open and close freely. Leave door operational on completion. Location: Mobile ECD","no",1,{"v":250,"d":"R250"},{"$f":"C168*D168","v":{"v":250,"d":"R250"}}]
["Cut out new window opening to walls of mobile ECD classroom which will be directed on site.Supply and fit new 600mm x 600mm natural aluminium window frame top hung with 4mm thick glazing including black aluminium right handed handle.","no",3,{"v":1000,"d":"R1,000"},{"$f":"C169*D169","v":{"v":3000,"d":"R3,000"}}]
["SUPPLY AND FIT NEW STONEGUARDS TO WINDOWS"]
["Provide, construct and erect over window openings at learner ablution blocks, new stone guards, using material of an approved manufacture. Note: The outer frame is to be constructed of 25 x 25 x 3mm thick angle iron, neatly mitred and securely welded at corners and filled in (including top, bottom and sides of stone-guards where applicable) with 3mm wide x 3mm thick expanded metal sheeting (type number 6320G/346A) with hole sizes not exceeding 50 x 25mm. Each frame is to be strengthened with a 25mm x 5mm mild steel bar and where panel exceeds one (1)m², an additional bar must be securely welded across(top to bottom and side to side) the center of each frame. Each guard is to be securely fitted to wall with not less than 8 x M10mm expanded bolts. All cross sections must be securely welded and neatly finished to an even surface. On completion and prior to painting, neatly clean away excessive welding and tack weld all bolt heads.\n","m²",40,{"v":900,"d":"R900"},{"$f":"C171*D171","v":{"v":36000,"d":"R36,000"}}]
["SUB TOTAL",{"$nulls":3},{"v":177800,"d":"R177,800"}]
[" "]
["SUPPLY AND INSTALL AN INDUSTRIAL ROLLER SHUTTER DOOR"]
["PLASTERING"]
["Take down and remove 8m wide x 1.3m high steel stall urinal at boys toilets and 2m wide x 1.3m high steel stall urinal at the gents educator toilets. Cart away removed stall urinal from site.","m²",13,{"v":250,"d":"R250"},{"$f":"D176*C176","v":{"v":3250,"d":"R3,250"}}]
[null,"item",7,{"v":300,"d":"R300"},{"v":2100,"d":"R2,100"}]
["Hack up cracked stoeps and steps infront of classrooms including steps of urinals which will be directed on site and cart away from school.","m²",100,{"v":100,"d":"R100"},{"v":10000,"d":"R10,000"}]
["Brake up and remove wall tiles at boys and girl toilets and cart away from site.","m²",100,{"v":65,"d":"R65"},{"v":6500,"d":"R6,500"}]
["One layer 4:1 steel floated cement plaster on brickwork of internal walls in boys and girls toilets.","m²",100,{"v":85,"d":"R85"},{"v":8500,"d":"R8,500"}]
["Thoroughly keep surfaces free of dust, slush over using clean cement mixed with a plaster key compound and leave to dry before new granolithic screed is introduced.  Lay new granolithic screed using 2 parts approved stone chippings, half part sand and one part cement per batch. Cast in panels, finish of flush with surrounding floor screed and neatly push a V-joint between new and old panels.New granolithic topping is to be finished using a steel trowel until a true, even and smooth surface is obtained.\n","m²",100,{"v":100,"d":"R100"},{"v":10000,"d":"R10,000"}]
["REPAIRING CRACKS TO PLASTER WALLS AND FLOORS"]
["Create a vee notch in the concrete approximately 10mm wide over the crack using a hammer and chisel or other small power tools and clear all debris, concrete and dust, prime the surface with approved concrete primer and fill the vee notch with epoxy mortar \"silka mono op 615HB or similar approved. Location: In classrooms and on stoeps infront of classrooms.","m²",50,{"v":180,"d":"R180"},{"$f":"D183*C183","v":{"v":9000,"d":"R9,000"}}]
[]
["SUB TOTAL",{"$nulls":3},{"v":47250,"d":"R47,250"}]
[]
[]
["TILING"]
["WALL TILING"]
["150 X 150 X 3mm White glazed ceramic tiles fixed with adhesive to plaster(plaster elsewhere) and flush pointed with tinted jointing compound. On walls in isolated panels, splashbacks, etc. Location: boys and girls toilets and educator toilets.","m²",100,{"v":250,"d":"R250"},{"$f":"D190*C190","v":{"v":25000,"d":"R25,000"}}]
["FLOOR TILING"]
["Supply and lay new ceramic floor tiles complete with tile skirting using the same tile around the borders of the rooms specified, 100mm high finished at the top of skirting with an approved tile strip of an approved colour to match new tiles. Location: Principal's office , Secretary's office , staffroom , educators toilets , Learner ablution blocks , Economic classroom no. 29 , Caretaker's room , Canteen room no. 11.","m²",800,{"v":250,"d":"R250"},{"$f":"D192*C192","v":{"v":200000,"d":"R200,000"}}]
[]
["SUB TOTAL",{"$nulls":3},{"v":225000,"d":"R225,000"}]
[]
["PLUMBING AND DRAINAGE"]
["REMOVALS"]
["Take down and remove damaged double steel sink wash trough at feeding scheme kitchen and cart away from site.","no.",1,{"v":65,"d":"R65"},{"$f":"D198*C198","v":{"v":65,"d":"R65"}}]
["Take down and remove rusted cast iron handwash basins with connecting pipes, stoptaps, bottletraps and waste pipes, cart away from site. Location: Learner ablution blocks, Girls and boys toilets at the hall ; Educator's toilets ; Caretaker's room.","no.",24,{"v":65,"d":"R65"},{"v":1560,"d":"R1,560"}]
["Take down and remove rusted cast iron cisterns with connecting pipes, stoptaps and flushpipes and cart away from site. Location: Learner ablution blocks, Girls and boys toilets at the hall ; Educator's toilets ; Caretaker's room.","no.",24,{"v":65,"d":"R65"},{"v":1560,"d":"R1,560"}]
["Take down and remove damaged porcelain water closets including pan collor and cart away from site. Location: Learner ablution blocks","no","6",{"v":65,"d":"R65"},{"v":390,"d":"R390"}]
["Take down and remove pan collor, flexi pvc 110mm pvc drain pipe including cast iron drain pipe to underground sewer pipe. Location: Boys toilets for grade 4 to 6 (quantity 1) and Mobile ECD (quantity 3)","no","4",{"v":100,"d":"R100"},{"v":400,"d":"R400"}]
["Take down and remove all rusted galvanised water pipes and cart away from site. Location: Learner ablution blocks and educators toilets.","m","30",{"v":25,"d":"R25"},{"v":750,"d":"R750"}]
["SANITARY PLUMBING"]
["PVC ABOVE GROUND"]
["50mm diameter pipe","m","30",{"v":100,"d":"R100"},{"$f":"D206*C206","v":{"v":3000,"d":"R3,000"}}]
["110 diameter pipe","m","12",{"v":120,"d":"R120"},{"$f":"D207*C207","v":{"v":1440,"d":"R1,440"}}]
["UPVC PIPE FITTINGS"]
["50mm Inspection bend","no","15",{"v":250,"d":"R250"},{"$f":"D209*C209","v":{"v":3750,"d":"R3,750"}}]
["50mm Inspection junction","no","15",{"v":250,"d":"R250"},{"v":3750,"d":"R3,750"}]
["110mm Inspection bend","no","5",{"v":250,"d":"R250"},{"v":1000,"d":"R1,000"}]
["110mm Bend with anti siphon horn","no","1",{"v":250,"d":"R250"},{"$f":"D212*C212","v":{"v":250,"d":"R250"}}]
["110mm Pan connector","no","20",{"v":250,"d":"R250"},{"v":5000,"d":"R5,000"}]
["50mm x 110mm reducer","no","6",{"v":250,"d":"R250"},{"v":1500,"d":"R1,500"}]
["50mm two way vent valve","no","1",{"v":250,"d":"R250"},{"v":250,"d":"R250"}]
["RUBBER TRAPS"]
["32mm Butyl rubber trap including hose clamps","no","24",{"v":250,"d":"R250"},{"$f":"D217*C217","v":{"v":6000,"d":"R6,000"}}]
["38mm Butyl rubber trap including hose clamps","no","9",{"v":250,"d":"R250"},{"v":2250,"d":"R2,250"}]
["WAISTE UNIONS, ETC."]
["32mm Basin waste union with backnut, plug, chain and stay","no","24",{"v":350,"d":"R350"},{"$f":"D220*C220","v":{"v":8400,"d":"R8,400"}}]
["38mm Urinal waste union","no","9",{"v":350,"d":"R350"},{"v":3150,"d":"R3,150"}]
["SANITARY FITTINGS"]
["NOTE:\nAll sanitary fittings shall be in strict accordance with PW371 Specification of Materials and Methods to be used.Descriptions of all sanitary fittings shall be deemed to include sealing at junctions with all surfaces and worktops, etc.  with an approved silicone joint sealer. “Vaal Potteries” or other approved white vitreous china fittings\n"]
["510 x 400mm “Daisy Code 7008” semi-retangular wash hand basin with one tap hole, complete with and including intergrated overflow and chainstay hole, basin bolted to wall with and including two 10mm diameter bolts(Code 844820), with star pillar tap with flunge backnut and raised nose hose.","no","24",{"v":3200,"d":"R3,200"},{"$f":"D224*C224","v":{"v":76800,"d":"R76,800"}}]
["WC suite comprising orchid white vitreous china or similar approved toilet pot.","no","6",{"v":1600,"d":"R1,600"},{"v":9600,"d":"R9,600"}]
["9 Litre low-level white vitreous china cistern complete with flushing mechanism and flush pipe.","no","24",{"v":2600,"d":"R2,600"},{"v":62400,"d":"R62,400"}]
["275 x 310 x 565mm ‘Sweatpea Code 705126’ Wall hung bowl urinal with \"Cobra\" junior flushmaster including 38mm diameter threaded spreader, flushpipe and fittings.\n","no","9",{"v":5000,"d":"R5,000"},{"v":45000,"d":"R45,000"}]
["Heavy duty double flap plastic seat and lid, fitments, etc.","no","24",{"v":500,"d":"R500"},{"v":12000,"d":"R12,000"}]
["Supply and fit single trough including fitting and flexitrap.","no","2",{"v":2600,"d":"R2,600"},{"v":5200,"d":"R5,200"}]
["Refit existing handwash basin against brickwall at classroom no. 2.","no","1",{"v":250,"d":"R250"},{"v":250,"d":"R250"}]
["Repair water leakage at flush pipe under cistern at ECD Grade R (A)","no","1",{"v":250,"d":"R250"},{"v":250,"d":"R250"}]
["WATER SUPPLY"]
["MAKSAL  460/0 HARD DRAWN COPPER TUBING INCLUDING ALL FITTINGS"]
["Supply and install 15mm copper pipe in Biology classroom no. 19 and educator's toilets.","m","40",{"v":120,"d":"R120"},{"$f":"D234*C234","v":{"v":4800,"d":"R4,800"}}]
["CROSS-LINKED POLYETHYLENE WATER PIPE"]
["Supply and fit where directed surface Cross-Linked Polyethylene (PEX) water pipes complete with all the necessary compression fittings required as well as all other fittings and fixtures that may be required to render the supply of water to all existing plumbing fixtures operational at the school.NB: Contractor to conduct a water test on water supply pipes to check for leaks at joints etc.\n"]
["16mm Cross-Linked Polyethylene (PEX) water pipes","m","100",{"v":80,"d":"R80"},{"$f":"D237*C237","v":{"v":8000,"d":"R8,000"}}]
["20mm Cross-Linked Polyethylene (PEX) water pipes","m","50",{"v":100,"d":"R100"},{"v":5000,"d":"R5,000"}]
["SUPPLY AND LAY/FIT NEW 50MM HDPE WATER PIPE"]
["Supply and lay/fit new 50mm high density polyethylene pipe (class 6)  according SANS 2001-DP6  in trench and against water tank complete with all the necessary compression fittings required to render the supply of water through the newly installed PVC “Jo-Jo” water tank to all existing plumbing fixtures operational at the school when necessary. ","m","850",{"v":120,"d":"R120"},{"$f":"D240*C240","v":{"v":102000,"d":"R102,000"}}]
["TAPS, VALVES, ETC."]
["MAIN SUPPLY AND SERVICE PIPES"]
["15mm Chromium plated flexi-connector including couplings to copper or steel","no","48",{"v":300,"d":"R300"},{"$f":"D243*C243","v":{"v":14400,"d":"R14,400"}}]
["15mm Lever type boll-o-stop","no","48",{"v":350,"d":"R350"},{"v":16800,"d":"R16,800"}]
["15mm Chromium plated star pillar tap for new handwash basins.","no","24",{"v":650,"d":"R650"},{"v":15600,"d":"R15,600"}]
["15mm SABS approved brass stoptap","no","3",{"v":450,"d":"R450"},{"v":1350,"d":"R1,350"}]
["20mm SABS approved brass stoptap","no","10",{"v":650,"d":"R650"},{"v":6500,"d":"R6,500"}]
["Supply and install a new SANS approved 50mm Brass gate valve with wheel head.","no","20",{"v":900,"d":"R900"},{"v":18000,"d":"R18,000"}]
["Supply and install a new SANS approved 50mm brass non-return valves which will be directed on site.","no","4",{"v":900,"d":"R900"},{"v":3600,"d":"R3,600"}]
["Supply and install a new SANS approved ball float valve inside the 10 000L PVC water tank measured elsewhere.","no","1",{"v":450,"d":"R450"},{"v":450,"d":"R450"}]
["SUPPLY AND INSTALL A 10 000L PVC WATER TANK"]
["Supply and install a 10 000L PVC Jo-Jo water tank ontop of the newly cast concrete slab.","no","1",{"v":25000,"d":"R25,000"},{"$f":"D252*C252","v":{"v":25000,"d":"R25,000"}}]
["CONNECTIONS OF WATER PIPES FROM PUMP ROOM AND TANKS INCLUDING NEW WATER RETICULATION"]
["Ensure that all pipe connections are made from the newly erected pump room,     10 000L water tank to the new main water supply and the new water reticulation of school.","Item","sum",{"v":5000,"d":"R5,000"},{"v":5000,"d":"R5,000"}]
[]
["SUB TOTAL",{"$nulls":3},{"v":468360,"d":"R468,360"}]
[]
["ELECTRICAL WORK"]
["REMOVALS"]
["Remove and diconnect internal fluorescent light fittings at existing positions shown on site.","no","125",{"v":65,"d":"R65"},{"v":8125,"d":"R8,125"}]
["Remove and diconnect exnternal light fittings at existing positions shown on site.","no.","20",{"v":65,"d":"R65"},{"v":1300,"d":"R1,300"}]
["Remove defective fan control speed switches including ceiling fans at existing positions shown on site.","no","7",{"v":65,"d":"R65"},{"v":455,"d":"R455"}]
["Remove socket outlets including 40m PVC trunking in classroom no. 26.","Item","1",{"v":1200,"d":"R1,200"},{"v":1200,"d":"R1,200"}]
["LIGHTS, LIGHT POINT AND SWITCHES"]
["Supply, install and connect new SABS APPROVED 1.5m x two lamp, surface mounted wide body, Cold rolled mild steel with a white epoxy powder coated finish, open channel fluorescent luminaire with telescopic holders, similar or equal to \"LASCON R1/T-258\", complete with 2 x 22 watt  (2 200lm) LED cool white lamps, similar or equal to LEDWORX's single sided, T8 Milky cover tube \"T8MS15SJA40024.The lamps shall be constructed from polycarbonate with an aluminium strip, have an Integrated Constant Current driver, be Eco-friendly (mercury free) and have a 3 year guarantee. The luminaire shall be rated at IP 20 (All classrooms, library and hall)","no","80",{"v":1200,"d":"R1,200"},{"v":96000,"d":"R96,000"}]
["Supply,install and connect new SABS approved 17 Watt (2620lm), round LED bukhead fitting with light, eual or similar to \"Beka 31 bulkhead LED 17W\" at existing position shown on site.","no","20",{"v":2500,"d":"R2,500"},{"v":50000,"d":"R50,000"}]
["Supply,install and connect new 20 Amp Photocell  unit mounte in new round bulkhead without interior at existing position shown on site.","no.","3",{"v":900,"d":"R900"},{"v":2700,"d":"R2,700"}]
["Supply and install new 20mm “SABS”    approved PVC conduit, complete with all accessories, from the new enclosure to new interior light point in Pump house.","m","4",{"v":50,"d":"R50"},{"$f":"D268*C268","v":{"v":200,"d":"R200"}}]
["Supply, install and connect two x 2,5mm² PVC conductors, from switchgear in new enclosure, to new light point and light switch point.","m","10",{"v":15,"d":"R15"},{"$f":"D269*C269","v":{"v":150,"d":"R150"}}]
["Supply, install and connect 1,5mm² Green PVC insulated earth wire from new enclosure, to new light point and light switch point.","m","4",{"v":10,"d":"R10"},{"$f":"D270*C270","v":{"v":40,"d":"R40"}}]
["Supply, install and connect new 1.5m x two lamp, surface mounted wide body, Cold rolled mild steel with a white epoxy powder coated finish, open channel fluorescent luminaire with telescopic holders, at positions shown on site, similar or equal to \"LASCON R1/T-258/WG\", fitted with wire guard, complete with 2 x 22 watt LED cool white lamps, similar or equal to LEDWORX's single sided, T8 Milky cover tube \"T8MS15SJA40024, in pump house. The lamps shall be constructed from polycarbonate with an aluminium strip, have an Integrated Constant Current driver, be Eco-friendly (mercury free) and have a 3 year guarantee. The luminaire shall be rated at IP 20.","no","1",{"v":1200,"d":"R1,200"},{"$f":"D271*C271","v":{"v":1200,"d":"R1,200"}}]
["Supply install and connect new 100mm x 50mm single lever light switch, complete with new white steel cover plate, mounted on new 100 x 50mm Steel extension box, at positions shown on site.","no","1",{"v":150,"d":"R150"},{"$f":"D272*C272","v":{"v":150,"d":"R150"}}]
["SOCKET OUTLETS"]
["Supply,install and connect new  (16 quantity) 100mm x 100mm 16A/ 6A switched socket outlets complete with white steel cover plate, similr or eual to \"Crabtree Classic Combo  Slimline  Switched 3 x Socket\", mounted on new 40m white steel trunking in computer room no.26.","Item","1",{"v":8000,"d":"R8,000"},{"v":8000,"d":"R8,000"}]
["Supply and install new 20mm SABS approved PVC conduit, including all accessories, from new enclosure, surface on the wall, to new socket outlet points in Pump House.","m","3",{"v":25,"d":"R25"},{"$f":"D275*C275","v":{"v":75,"d":"R75"}}]
["Supply and install new 20mm SABS approved PVC conduit, including all accessories, from existing sub distribution board in classroom block, surface on the wall, to new two socket outlet points in classroom no.24","m","3",{"v":25,"d":"R25"},{"v":75,"d":"R75"}]
["Supply, install and connect new 100 x 100mm 16 Amp double normal socket outlets, complete with white steel cover plates, mounted in new 100 x 100mm York Box, at position shown on site in Pump House.","no","1",{"v":400,"d":"R400"},{"v":400,"d":"R400"}]
["Supply, install and connect new 100 x 100mm 16 Amp double normal socket outlets, complete with white steel cover plates, mounted to wall surface and ceiling in classroom no.24.","no","2",{"v":400,"d":"R400"},{"v":800,"d":"R800"}]
["Supply, install and connect two x 4mm² PVC conductors, from new 20 Amp circuit breaker in new enclosure and existing sub distribution board in classroom block, to new socket outlet points.","m","60",{"v":40,"d":"R40"},{"v":2400,"d":"R2,400"}]
["Supply, install and connect 2,5mm² Green PVC insulated earth wire from new enclosure, to new socket outlets.","m","60",{"v":30,"d":"R30"},{"v":1800,"d":"R1,800"}]
[]
[]
[]
["DRILLING AND EQUIPPING OF BOREHOLE"]
["BOREHOLE SITING"]
["The hydrogeological search for and best location to drill a borehole on the school premises.","no.","1",{"v":10000,"d":"R10,000"},{"v":10000,"d":"R10,000"}]
["DRILLING OF BOREHOLE"]
["Drilling of 6.5  ̋ Hole"]
["A precision hole of the above diameter should be regarded as Standard for drilling purposes. The Depth of the drilled hole will be taken to a maximum of 150m. The Service Provider will provide the final depth drilled for payment purposes. ","m","150",{"v":800,"d":"R800"},{"$f":"D289*C289","v":{"v":120000,"d":"R120,000"}}]
[]
[]
[]
[]
["DRILLING OF BOREHOLE"]
["Drilling of 6.5  ̋ Hole"]
["A precision hole of the above diameter should be regarded as Standard for drilling purposes. The Depth of the drilled hole will be taken to a maximum of 150m. The Service Provider will provide the final depth drilled for payment purposes. ","m","150",{"v":400,"d":"R400"},{"$f":"D296*C296","v":{"v":60000,"d":"R60,000"}}]
["SUPPLY AND INSTALL STEEL CASING 6.5  ̋"]
["Install a steel casing in the existing hole to a depth of  maximum 100m.","m","100",{"v":500,"d":"R500"},{"$f":"D298*C298","v":{"v":50000,"d":"R50,000"}}]
["ELECTRICAL INSTALLATION"]
["Repair electricity for lights and plugs (tripping) in classroom which will be directed on site.","Item","1",{"v":10000,"d":"R10,000"},{"$f":"D300*C300","v":{"v":10000,"d":"R10,000"}}]
["NEW INSTALLATION OF EXISTING DB BOARD, ENCLOSURE AND EAVE BOX,SWITCHGEAR AND CONTROLGEAR"]
["Supply and install new 650 x 450 x 270mm lockable, mild steel powder coated enclosures with an ingress protection rating of IP66, in Pump House at position shown on site. The enclosure shall have a strong and rigid construction - doors shall be fitted with concealed hinges and a continuous polyurethane foam gasket or door seal, to ensure a degree of dust and water resistance. All metalwork shall be phosphated, primed and powder coated to protect against corrosion. Colour shall be textured B26 Electric Orange.","no","1",{"v":8400,"d":"R8,400"},{"$f":"D302*C302","v":{"v":8400,"d":"R8,400"}}]
["Supply and install new lockable three phase half size eave box that is protected against corrosion and provides a degree of protection of at least IP44. at position shown on site at borehole position.","no","1",{"v":1000,"d":"R1,000"},{"v":1000,"d":"R1,000"}]
["Supply, install and connect the following new dual mount switchgear, in existing Sub Board at Admin block to pumproom:"]
["40A, 6kA single pole plus neutral circuit breaker [similar or equal to QF-N-2(26)] (Supply to Pump House DB).","no","1",{"v":600,"d":"R600"},{"$f":"D305*C305","v":{"v":600,"d":"R600"}}]
["Supply, install and connect the following new dual mount switchgear, in new enclosure in Pump House:"]
["40 Amp 6kA single pole plus neutral circuit breaker, complete with new shroud, [Similar or equal to CBi's QF-N-2(26)] (Main Switch).","no","1",{"v":600,"d":"R600"},{"$f":"D307*C307","v":{"v":600,"d":"R600"}}]
["20 Amp 6kA single pole plus neutral circuit breaker, complete with new shroud, [Similar or equal to CBi's QF-N-2(13)] (Supply to Franklin Starter and to new eave box).","no","2",{"v":590,"d":"R590"},{"v":1180,"d":"R1,180"}]
["10 Amp 6kA single pole plus neutral circuit breaker, complete with new shroud, [Similar or equal to CBi's QF-N-2(13)] (Supply to 1,1 kW Pump).","no","2",{"v":590,"d":"R590"},{"v":1180,"d":"R1,180"}]
["20 Amp 6kA single pole  circuit breaker, complete with new shroud, [Similar or equal to CBi's QF-1(13)] (Socket outlet circuit).","no","3",{"v":225,"d":"R225"},{"v":675,"d":"R675"}]
["10 Amp 6kA single pole, complete with new shroud, [Similar or equal to CBi's QF-1(13)] (Light circuit).","no","1",{"v":225,"d":"R225"},{"v":225,"d":"R225"}]
["Supply and install new mini-rail for the mounting of switchgear in new enclosure and meter box.","m","1",{"v":280,"d":"R280"},{"v":280,"d":"R280"}]
["Supply, install, connect and set up new liquid level control relay, complete with base, for control of the water level in the tank.","no","1",{"v":1000,"d":"R1,000"},{"v":1000,"d":"R1,000"}]
["Supply, install and connect new liquid level control probes in tank.","no","1",{"v":1700,"d":"R1,700"},{"v":1700,"d":"R1,700"}]
["Supply install, connect and set up new phase angle relay, complete with current transformer and base, for control of the water level in the tank.","no","1",{"v":1500,"d":"R1,500"},{"v":1500,"d":"R1,500"}]
["Supply, install and connect new 1,1 kW Automatic Direct on line Starter, 240 V, 1 Phase, IP65 in Insulated polycarbonate enclosure, supplied complete with thermal overload and start and stop/reset pushbuttons.","no","1",{"v":1200,"d":"R1,200"},{"v":1200,"d":"R1,200"}]
["Supply, install connect and set up new pump protection relay, complete with current transformer and base, to protect borehole motor.","no","1",{"v":1000,"d":"R1,000"},{"v":1000,"d":"R1,000"}]
["Supply, install and connect the following new dual mount switchgear, complete with shrouds in new meter box at borehole:"]
["63 A double pole 30 mA 6kA Earth Leakage Unit without overload protection [Similar or equal to QF17C].","no","1",{"v":1800,"d":"R1,800"},{"$f":"D319*C319","v":{"v":1800,"d":"R1,800"}}]
["20 Amp 6kA single pole plus neutral pole circuit breaker, [Similar or equal to CBi's QF-N-2(13)].","no","1",{"v":590,"d":"R590"},{"v":590,"d":"R590"}]
["Supply, install and connect new 10 Amp 6kA single pole circuit breaker, similar or equal to \"Cbi QF-1(13)\" (Control).","no","2",{"v":225,"d":"R225"},{"v":450,"d":"R450"}]
["Supply, install connect and set up new pump protection relay, complete with current transformer and base, to protect borehole motor.","no","1",{"v":1000,"d":"R1,000"},{"v":1000,"d":"R1,000"}]
["Label all circuits in new eave box and new enclosure, as well as labelling of eave box and enclosure(pump room).","Item","sum",{"v":1000,"d":"R1,000"},{"v":1000,"d":"R1,000"}]
["Supply and install new danger sign on door of new eave box and new enclosure, dimensions 150mm x 150mm. (Drawing WW1).","no","2",{"v":300,"d":"R300"},{"$f":"D324*C324","v":{"v":600,"d":"R600"}}]
["Supply and install new \"In case of Emergency...\" signs in Sub Board , eave box and new enclosure.","no","2",{"v":60,"d":"R60"},{"v":120,"d":"R120"}]
["Supply and construct a frame for new eave box at borehole site, to be mounted on from 50mm x 5mm angle iron, neatly welded together (All corners shall be mitred). The constructed frame shall be degreased and painted with one coat universal undercoat and two coats high gloss enamel paint.","m","6",{"v":300,"d":"R300"},{"v":1800,"d":"R1,800"}]
["RETICULATION CABLE"]
["Supply, install and connect 6mm² two core 660/ 1000 Volt multi-core PVC insulated, armoured cable, from new 40 Amp Circuit breaker  in existing Sub Board at Admin block, via surface on the wall , to new 40 Amp circuit breaker in new enclosure(pump room), including suitable glands and shrouds.","m","2",{"v":100,"d":"R100"},{"$f":"D328*C328","v":{"v":200,"d":"R200"}}]
["Supply, install and connect 4mm² bare copper earth conductor along with 6mm² cable.","m","2",{"v":15,"d":"R15"},{"v":30,"d":"R30"}]
["Supply, install and connect 2,5mm² two core 660/ 1000 Volt multi-core PVC insulated, armoured cable, from new switchgear, surface on the wall, to new motor, including suitable glands and shrouds.","m","20",{"v":80,"d":"R80"},{"v":1600,"d":"R1,600"}]
["Supply, install and connect 1,5mm² bare copper earth conductor along with 2,5mm² cable.","m","20",{"v":30,"d":"R30"},{"v":600,"d":"R600"}]
["Supply, install and connect 10mm² two core 660/ 1000 Volt multi-core PVC insulated, armoured cables, from new 40 Amp Circuit breaker  in existing Sub Board at Admin block, via surface on the wall , to new 40 Amp circuit breaker in new enclosure(pump room) including new 15 Amp Circuit breaker  in new enclosure, surface on the wall and buried in the ground, to new eave box at Borehole pump, including suitable glands and shrouds.","m","250",{"v":200,"d":"R200"},{"v":50000,"d":"R50,000"}]
["Supply, install and connect 6mm² bare copper earth conductor along with 10mm² cable.","m","250",{"v":25,"d":"R25"},{"v":6250,"d":"R6,250"}]
["Connect existing submersible cable to new 20 Amp Circuit breaker in new eave box.","no","1",{"v":250,"d":"R250"},{"v":250,"d":"R250"}]
["Supply and install cable warning tape running 200mm above buried cable.","m","150",{"v":30,"d":"R30"},{"v":4500,"d":"R4,500"}]
["SOCKET OUTLETS"]
[]
[]
[]
[]
["LIGHTS, LIGHT  POINTS AND LIGHT SWITCH POINTS"]
[]
[]
[]
[]
[]
["SLEEVE PIPES AND EXCAVATIONS"]
["Supply and install sleeve pipes including short lengths jointing, sweeping bends, bushes, locknuts etc.:"]
["50mm diameter PVC in trenches","m","20",{"v":100,"d":"R100"},{"$f":"D349*C349","v":{"v":2000,"d":"R2,000"}}]
["50mm diameter PVC built-in or cast in concrete","m","20",{"v":140,"d":"R140"},{"v":2800,"d":"R2,800"}]
["40mm diameter hot-dipped galvanised surface on wall/ exposed.","m","30",{"v":260,"d":"R260"},{"v":7800,"d":"R7,800"}]
["EXCAVATIONS"]
["Excavations and trenching for cables and water pipes must be at least 500mm deep and 300mm wide. Trenching must be properly dug to ensure proper execution of the work. The backfill around cables shall not contain any sharp objects. The trench must be perfectly straight in line and run at right angles from point to point."]
["Earth","m²","32",{"v":250,"d":"R250"},{"$f":"D354*C354","v":{"v":8000,"d":"R8,000"}}]
["Soft Rock","m","10",{"v":350,"d":"R350"},{"v":3500,"d":"R3,500"}]
["Hard Rock","m","6",{"v":500,"d":"R500"},{"v":3000,"d":"R3,000"}]
["Earthing and bonding to comply with the latest SANS 10142-1:2003 Code of Practice for The Wiring of premises as amended.","Item","sum",{"v":1600,"d":"R1,600"},{"v":1600,"d":"R1,600"}]
["Inspections, testing and handing over of the complete installation in the prescence of the Engineer and certify the results on the Certificate of Compliance by an accredited person.","Item","sum",{"v":3000,"d":"R3,000"},{"v":3000,"d":"R3,000"}]
["SUPPLY AND INSTALLATION OF SUBMERSIBLE PUMP AND MOTOR"]
["Supply and install a S4-2/20 HYDRAULIC PART 1.1 KW.","no","1",{"v":7400,"d":"R7,400"},{"$f":"D360*C360","v":{"v":7400,"d":"R7,400"}}]
["Ditto, DAB 40L Motor 1.1KW 230V 1Ph.","no","1",{"v":7400,"d":"R7,400"},{"v":7400,"d":"R7,400"}]
["Ditto, submersible cable 4mm x 4core.","m","150",{"v":25,"d":"R25"},{"v":3750,"d":"R3,750"}]
["Ditto, splicing kit SK82A1 (2.5 – 4mm)","no","1",{"v":250,"d":"R250"},{"v":250,"d":"R250"}]
["Ditto, poly pipe HDPE 32mm class 6.","m","350",{"v":35,"d":"R35"},{"v":12250,"d":"R12,250"}]
["Ditto, male adaptor 32 x 1.25","no","1",{"v":700,"d":"R700"},{"v":700,"d":"R700"}]
["Ditto, press steel base plate 162.5 cm x 2mm thickness with a 32mm diameter hole in centre.","no","1",{"v":300,"d":"R300"},{"v":300,"d":"R300"}]
["Ditto, galvanised M+F bend 90˚ x 32mm.","no","1",{"v":700,"d":"R700"},{"v":700,"d":"R700"}]
["Ditto, safety rope M1.","m","150",{"v":15,"d":"R15"},{"v":2250,"d":"R2,250"}]
["Ditto, cable ties T120R 388 X 7.8mm","no","50",{"v":4,"d":"R4"},{"v":200,"d":"R200"}]
["SUB TOTAL",{"$nulls":3},{"v":298930,"d":"R298,930"}]
[]
["ELECTRONIC INSTALLATIONS"]
["Supply and fit to ceiling a SABS approved good quality projector in classroom no.24","no","1",{"v":20000,"d":"R20,000"},{"$f":"D373*C373","v":{"v":20000,"d":"R20,000"}}]
["Supply and deliver a 20m HDMI cable.","no","1",{"v":2000,"d":"R2,000"},{"v":2000,"d":"R2,000"}]
["SUB TOTAL",{"$nulls":3},{"v":22000,"d":"R22,000"}]
[]
["MECHANICAL WORK"]
["TESTING OF BOREHOLE WATER"]
["Borehole water testing for water quality and yield including the amount of water which it will be required to supply. to be submitted to Client prior to installation of water purification system. Quality water tests and Certificate Of Compliance shall be submitted to Client after installation of water purification system.            ","Item","1",{"v":8000,"d":"R8,000"},{"$f":"D379*C379","v":{"v":8000,"d":"R8,000"}}]
["SUPPLY AND INSTALLATION OF BOOSTER PUMP"]
["Supply, install and connect new 1.1 kw Dual Impeller centrifugal electrical pump in cast iron with maximum head of 50 m, Capacity from 1.2 to 6 m3/h and maximum operating pressure of 10 bar, with asynchronous 230V 2-pole self-ventilated motor. The motor shall be bolted down with 8mm dia. expansion bolts.","no","1",{"v":9000,"d":"R9,000"},{"$f":"D381*C381","v":{"v":9000,"d":"R9,000"}}]
["Supply, connect and install a 230V pressure flow control switch, with maximum flow of 100L/min and maximum pressure of 10 bar on pump for control of water pressure, which must be incorporated in the starter circuit. The model should be or equal to an Automatic Pressure Switch DTDS-3. The electronic switch should be for starting and stopping small single phase, when the TAP opens and closes. It must adjust flow rate and pressure constantly.","no","1",{"v":3400,"d":"R3,400"},{"v":3400,"d":"R3,400"}]
["SUPPLY AND INSTALL 10 000L PVC WATER TANK"]
["Supply and fit new 10 000L JoJo Water Tanks as according to standard specifications for these tanks.","no","1",{"v":15000,"d":"R15,000"},{"$f":"D384*C384","v":{"v":15000,"d":"R15,000"}}]
[]
[]
["Supply and install  a SABS approved 32mm brass wheelheaded gate valve.","no","3",{"v":650,"d":"R650"},{"$f":"D387*C387","v":{"v":1950,"d":"R1,950"}}]
["Supply and install  a SABS approved 32mm brass non-return valve.","no","2",{"v":650,"d":"R650"},{"v":1300,"d":"R1,300"}]
["Supply and install  a ball valve inside newly installed 10 000L PVC water tank.","no","1",{"v":650,"d":"R650"},{"v":650,"d":"R650"}]
["SUPPLY AND INSTALL A NEW WATER PURIFICATION SYSTEM"]
["Supply and install a new water vessel “Filter system 844”. The system comes complete with the following components:\n1 x FRP Vessel\n1 x Controler head (Automatic or Manual)\n1 x Riser pipe\n1 x Top and Bottom Strainer\nCation Resin Media:\n844 comes with 1 x 25Kg Bag\n1 x Bine tank with fittings \n1 x Salt 25Kg Bag\n","no","1",{"v":32000,"d":"R32,000"},{"$f":"D391*C391","v":{"v":32000,"d":"R32,000"}}]
["Supply and install an approved chlorinator including fittings into newly installed water vessel filter system 844.                                                                                                                                                                                                                                                                                                                                                                                                                                                                                                                                                                                                                                                                                                                                                                                                                                                                        ","no","1",{"v":5000,"d":"R5,000"},{"v":5000,"d":"R5,000"}]
["TESTING AND  COMMISSIONING"]
["Allowance shall be made for the testing and commissioning of mechanical installation.","no","1",{"v":3000,"d":"R3,000"},{"$f":"D394*C394","v":{"v":3000,"d":"R3,000"}}]
[]
["VENTILATION AND AIR CONDITIONING INSTALLATIONS"]
["Supply and install a 18000BTU high wall inverter air conditioner with isolator point and electrical connection in the staffroom.","no","1",{"v":35000,"d":"R35,000"},{"$f":"D397*C397","v":{"v":35000,"d":"R35,000"}}]
["Supply and install a 48000BTU casette type inverter air conditioner with isolator point and electrical connection in the Economics classroom no.29.","no","1",{"v":60000,"d":"R60,000"},{"v":60000,"d":"R60,000"}]
["Service 36000BTU spilt unit in coputerroom no. 26.","no","2",{"v":5000,"d":"R5,000"},{"v":10000,"d":"R10,000"}]
[]
["TESTING AND  COMMISSIONING"]
["Allowance shall be made for the testing and commissioning of mechanical installation.","no","1",{"v":3000,"d":"R3,000"},{"$f":"D402*C402","v":{"v":3000,"d":"R3,000"}}]
["SUB TOTAL",{"$nulls":3},{"v":168400,"d":"R168,400"}]
[]
["GLAZING"]
["TO STEEL PUTTY"]
["4mm Thick clear glass"]
["Panes exceeding 0, 1 square meter and not exceeding 0, 5 square meters."]
[null,"no","1",{"v":850,"d":"R850"},{"$f":"D409*C409","v":{"v":850,"d":"R850"}}]
["In all classrooms and learner ablution blocks.","m²","80",{"v":400,"d":"R400"},{"v":32000,"d":"R32,000"}]
["Size: 280mm x 420mm :(quantity 1 - classroom no.4) ","m²","1",{"v":200,"d":"R200"},{"v":200,"d":"R200"}]
["Size: 250mm x 360mm :(quantity 5 - classroom no.5) ","m²","1",{"v":850,"d":"R850"},{"v":850,"d":"R850"}]
["Size: 270mm x 370mm :(quantity 5 - classroom Grade 7A) ; (quantity 3 - classroom Grade 6A)","m²","1",{"v":300,"d":"R300"},{"v":300,"d":"R300"}]
["Size: 250mm x 360mm :(quantity 15 - classroom Grade 6B) ; (quantity 3 - classroom Grade 6B) ; (quantity 5 - classroom no.5) ","m²","2",{"v":400,"d":"R400"},{"v":800,"d":"R800"}]
["Size: 250mm x 370mm :(quantity 7 - classroom no. 7) ; (quantity 7 - classroom no. 8) ; (quantity 7 - classroom no. 9); (quantity 4 - classroom no. 10) ; (quantity 7 - classroom no. 11) ; (quantity 14 - classroom no. 12) ; (quantity 1 - girls toilets for grade 4 to 6) ; (quantity 1 - in passage of building block F)","m²","5",{"v":300,"d":"R300"},{"v":1500,"d":"R1,500"}]
["6mm Thick clear safety glass"]
["Size: 1000mm x 2000mm :(quantity 6 - Entrance doors at hall)","m²","12",{"v":850,"d":"R850"},{"$f":"D417*C417","v":{"v":10200,"d":"R10,200"}}]
["MIRRORS"]
["6mm Silvered float glass copper backed mirrors with polished edges holed for and fixed with chromium plated dome capped mirror screws with rubber buffers to plug in brickwork or concrete."]
["Supply and fit 6 mm Quality Polished glass mirror, 450 x 600mm high fixed to wall position as shown on site. Location: Teacher's toilets at admin block; Boys and girls toilets. ","no","4",{"v":1000,"d":"R1,000"},{"$f":"D420*C420","v":{"v":4000,"d":"R4,000"}}]
[]
["SUB TOTAL",{"$nulls":3},{"v":46200,"d":"R46,200"}]
[]
["PAINTWORK"]
["NOTE : Tenderers are advised to study the \"Specification of Materials and Methods to be used\" before pricing this bill."]
["TWO COATS \"DULUX WEATHER GUARD\" PAINT ON FLOATED PLASTER"]
["Prepare surfaces and remove all loose material, apply two coats of double velvet PVA matt finish emulsion paint to SABS 1586 wall surface primed with one universal undercoat or similar approved paint internally."]
["On Internal plastered walls ","m²",5936,{"v":85,"d":"R85"},{"$f":"C428*D428","v":{"v":504560,"d":"R504,560"}}]
[null,"m",35,0,0]
["Two coats \"Plascon Polvin Super Acrlic\" ( EPL) PVA paint on work in good conditions"]
["On External plastered walls 300","m²",4250,{"v":85,"d":"R85"},{"v":361250,"d":"R361,250"}]
["One coat \"Plascon UC.56 merit\" Plaster primer and two coats EPL polvin super acrylic"]
["On ceilings and cornices 175","m²",2986,{"v":85,"d":"R85"},{"v":253810,"d":"R253,810"}]
["Three coats emulsion paint to comply with SABS 1586 (or later revision) grade 2 matt finish with all accessories in strict accordance with manufacturer instruction or similar approved."]
["On fibre cement fascia and barge boards 100","m",1100,{"v":45,"d":"R45"},{"v":49500,"d":"R49,500"}]
["Spot priming defects in pre primed surfaces zinc chromate primer and applying one undercoat and two coats \"Plascon\" high gloss enamel paint on steel."]
["On door frames, etc ","m",500,{"v":45,"d":"R45"},{"$f":"C437*D437","v":{"v":22500,"d":"R22,500"}}]
["On window sills, etc 24.30","m",300,{"v":85,"d":"R85"},{"v":25500,"d":"R25,500"}]
["On steel window frames, etc 100","m²",450,{"v":85,"d":"R85"},{"v":38250,"d":"R38,250"}]
["Security gate, rails, stone guards, covered walkway steel structure, etc. ","m²",400,{"v":85,"d":"R85"},{"v":34000,"d":"R34,000"}]
["One coatdark stain and three coats clear \"Plascon polyurethane\" ultra varnish"]
["On doors ","m²",300,{"v":85,"d":"R85"},{"v":25500,"d":"R25,500"}]
["Sanding sealer and three coats clear \"Plascon Floor Vanish\"- PFV suede Finish"]
["On skirting, rails, etc not exceeding 300mm girth ","m",678,{"v":45,"d":"R45"},{"v":30510,"d":"R30,510"}]
["REFURBISHMENT OF WOODEN FLOORS"]
["Refurbisch all wooden floors at the school which will be directed on site. Surface to be clean, dry and dust free. Machine sand floor in the direction of the grain to remove surface coatings or contaminants until a smooth and uniformly clean profile is obtained. Rake out open joints to remove dirt and vacuum up dust. Wipe surface with mutton cloth dampened with universal reducer to ensure a spotlessly clean and free surface. Substrate to be sanded lightly between coats with 400 grit paper. Prime with one coat of varnish or sanding sealer of grade standard, with an over coating time of 8 hours and finish with two coats of floor varnish or seal of grade standard, and gloss designation (matt, sheen, gloss) with an over coating time between coats (as per manufacturer’s instructions) hours, for maintenance cycle of (as per manufacturer’s instructions) years in a (as per\nmanufacturer’s instructions) environment.\n","m²",1770,{"v":330,"d":"R330"},{"v":584100,"d":"R584,100"}]
["SUB TOTAL",{"$nulls":3},{"v":1929480,"d":"R1,929,480"}]
[]
["MECHANICAL INSTALLATIONS"]
[]
["Supply and install a 220v AC Roller Shutter door automation kit full motor and remotes. Remotes should operate with existing Centurion Remote Controles.","no",1,0,{"$f":"C451*D451","v":0}]
["Supply and install a natural aluminium ES200 easy auto unit to close and open the newly installed aluminium double sliding door. Operation of sliding door must be incorporated in the existing access control system. In addition supply and fit an override to the electrical function of double sliding door, which will be directed on site.","no",1,0,{"$f":"C452*D452","v":0}]
["Testing and Commissioning: Inspections, testing and handing over of the complete installation in the presence of the Engineer and certify the results on the Certificate of Compliance by an Accredited person.","item",1,0,{"$f":"C453*D453","v":0}]
["SUB TOTAL",{"$nulls":3},{"$f":"SUM(E451:E453)","v":0}]
["PAINTING - EXTERNAL"]
["PAINT NEW VANDAL PROOF CAGE"]
["Clean down prepare for and apply primer, one undercoat and two coats high gloss paint to newly installed custom made vandal proof cage.","m²",2,0,{"$f":"C457*D457","v":0}]
["SUB TOTAL",{"$nulls":3},{"$f":"SUM(E455:E457)","v":0}]
[]
[]
[]
["EXTERNAL WORKS"]
[]
["PRELIMINARY AND GENERAL"]
["Contractural Requirements including Site Establishment and removal of site establishment.","No",1,null,{"$f":"C465*D465","v":0}]
["Compliance to Occupational Health and Safety Act and Regulations\nThe contractors attention is drawn to the notes to tenderers “Occupational Health and Safety Act” with the full contents thereof as well as the Government Gazette No. 25207 (18 July 2003) and O.H & S.  Specification is provided.  The total cost of the Health and Safety items must be priced under this clause as no additional claims will be entertained.","No",1,null,{"$f":"C466*D466","v":0}]
["SUB TOTAL",{"$nulls":3},"R"]
[]
["HIGH SECURITY FENCING AND GATES: FENCE LENGHT - 635 METERS"]
["High Security Fencing and components for high security fencing to comply with SABS latest Standards.The whole of the work is to be carried out by workers skilled in this class of work and the materials and finishes are to be to the approval of the Department representative.High Security Fencing over sloping terrain shall be stepped to suit terrain, including the use of increased lengths of posts as necessary, excavations, etc.All fixing bolts are to be electrogalvanised and passivated.Posts shall be set plum, and follow the indicated alignment. All posts shall be set to the depth specified in the bill of quantities. Concrete shall be thoroughly consolidated around each post, free of voids, and finished with a domed shaped surface, with base of dome at grade elevation. Concrete shall be allowed to cure prior to installing any additional components to the posts.Concrete footings shall be carried down to at least the depth specified in the bill of quantities and shall not be smaller than the dimension described. Where a rock layer is encountered with the required depth to which the post is to be erected, a hole of a diameter slightly larger than the largest dimension of the post may be drilled into the rock and the post grouted in. Then regular concrete footing shall be placed between top of the rock and top the footing elevations described in the bill of quantities. Post shall be approximately centred in their footings. All concrete shall be placed promptly and consolidated by tamping or other approved methods.Where the ground is firm enough to permit excavation of the post hole to neat lines, the concrete may be placed without forms by completely filling the hole. Curing may be achieved by covering the concrete with not less than four inches of loose moist material immediately after placing concrete, or by using a curing compound. All excess material from footings, including loose material used for curing, shall be disposed of as directed by the Department Representative.Where the ground cannot be satisfactorily excavated to neat lines, forms shall be used to place the concrete for footings. Under these conditions the earth and forms coming in contact with concrete shall be moistened and all ponded water shall be removed from the hole prior to placing concrete. When forms are removed, the footing shall be backfilled with moistened material, and thoroughly tamped. The top of the concrete shall then be covered with not less than 100mm (4 inch) of loose moistened material or use curing compound if the 7 days cure is not completed. All excess materials from footings, including loose materials used for curing, shall be disposed off as directed.Gates shall be installed at the locations shown. Hinged gates shall be mounted to swing as indicated. Latches, stops, and keepers shall be installed as required. Slide gates shall be installed as recommended by the manufacturer.Adjusting:Gate: Adjust the gate to operate smoothly, easily and quietly, free from binding, warp, excessive deflection, distortion, non alignment, misplacement, disruption, or malfunction and secured without forcing or binding.Lubricate hardware and other moving parts.\n"]
["EARTHWORKS"]
["DEMOLITIONS AND SITE CLEARANCE"]
["Carefully cut and remove from site the existing 1800mm high razor blade fence including srraining wires with concrete bases with posts. Also remove the existing one sliding motor gate. ","m",635,0,{"$f":"C473*D473","v":0}]
["PREPARATION AND CLEANING OF SITE ON COMPLETION"]
["The line of the fence shall be thoroughly cleaned for a distance of 1 meter on either side of the centre line of the fence; any irregularities in the ground must be removed in order that the fence may follow the general contour of the ground. Clearing shall include the removal of all trees not exceeding 200mm in girth (pruning and shaping of trees), shrubs and rubble, debris, grass, bush which may interfere with the erection of the fence. Slumps within the cleared area must be removed. The bottom of the fence shall be an even distance of 20mm above the ground level. All cleared rubble shall be dumped in municipal refuse dumps.","m²",1270,0,{"$f":"C475*D475","v":0}]
["EXCAVATIONS"]
["Excavate 400mm x 400mm x 600mm deep holes in ordinary earth for posts. ","m³",19,0,{"$f":"C477*D477","v":0}]
["Excavate 300mm wide x 300mm deep x 19m long in ordinary earth trench for one sliding gate track.","m³",1,0,0]
["EXTRA OVER EXCAVATIONS"]
["Soft Rock","m³",7,0,{"$f":"C480*D480","v":0}]
["Hard Rock","m³",4,0,0]
["SUB TOTAL",{"$nulls":3},0]
[]
["CONCRETE WORK"]
["Cast concrete in base for intermediate post, size 400 x 400 x 600mm, with chamfered top surface projecting 20mm above surrounding ground level, including any necessary formwork, etc. with a minimum compression strength of 25 MPa /19mm stone within 28 days.","m³",45,0,0]
["Cast concrete in plinth under gate, size 300mm wide x 300mm deep x 19m long, with wood floated top surface at ground level, including any necessary formwork, etc. with a minimum compression strength of 30 MPa /19mm stone within 28 days.","m³",2,0,{"$f":"C486*D486","v":0}]
["SUB TOTAL",{"$nulls":3},0]
[]
["FENCING AND POSTS, ETC."]
["Panel shall be of 3,305m width and 3.0m in height. Panel aperture size (centres) shall be 12.7mm x 76.2mm.The panel shall be reinforced with 4 x 50mm deep ‘V’ formation horizontal recessed bands (rigidity) Panel shall have 2 x 70° flanges along sides (internal fixtures - all fixtures shall be on the inside of fence line). Panel shall have 1 x 30° flanges along toe and 1 x 90° flanges top (integrated rigid angle).Panel post shall have a flush panel post finish. Panel shall be affixed to post over 48 line wires using 8 x Single bolt comb clamps and 8 x Double bolt comb clamps using Anti vandal bolts. Panel and fixtures shall be Galvanized and then coated with a Black polymetric Coating.","no.",192,0,0,null," "]
["Post shall be 3.6m long Taper Locking Post. Post width shall be 85mm - tapering to 45mm with a depth of 85mm.Post shall include ‘Locking Recess Mechanism’ to secure panel edge. Post finish shall be Galvanized, and then coated with a Black polymetric Coating.","no.",198,0,0]
["Supply and install a modular rail as extention to fence height according to maufacturer's design, shall be Hot Dipped Galvanized and then coated with a polymetric Coating black in colour.","no.",187,0,0]
["A 100mm high toughened steel Castle spike shall be affixed to panel edge, internally at 150mm intervals using Anti vandal bolts. Spike finish shall be Hot Dipped Galvanized, and then coated with a polymetric Coating black in colour.","no.",423,0,0]
["HEAVY DUTY SLIDING GATE "]
["Supply and install new 5m wide x 3m high heavy duty sliding vehicular security gate.Complete with 3mm horizontal x 4mm vertical allu galvanised wires and polymetic 6000 \"Black\" coating, panel aperture centres at 76,2mm x 12,7mm incorporated into gate frame with steel track, locking gate post, guidepost with cross brace, including vertical plate restricting the lifting of the gate from the rail with heavy duty pad lockable facility and cover restricting lock tampering as per suppliers specification. A 100mm high toughened steel Castle spike shall be affixed to  gate.","no.",1,0,0]
["Transport of material from supplier (Johannesburg) to Kimberley.","item","sum",0,0]
["SUB TOTAL",{"$nulls":3},0]
[]
[]
["END OF SPECIFICATIONS"]
[]
["SUMMARY"]
[" "]
["PRELIMINARY AND GENERAL",{"$nulls":3},0]
["EARTHWORKS",{"$nulls":3},0]
["CONCRETE",{"$nulls":3},0]
["FENCING             ",{"$nulls":3},{"v":72300,"d":"R72,300"}]
["ROOF COVERING",{"$nulls":3},{"v":117540,"d":"R117,540"}]
["CARPENTRY AND JOINERY",{"$nulls":3},{"v":195600,"d":"R195,600"}]
["CEILINGS",{"$nulls":3},{"v":472290,"d":"R472,290"}]
["FLOOR COERING",{"$nulls":3},{"v":297420,"d":"R297,420"}]
["IRONMONGAREY",{"$nulls":3},{"v":39000,"d":"R39,000"}]
["METALWORK",{"$nulls":3},{"v":177800,"d":"R177,800"}]
["PLASTEREING",{"$nulls":3},{"v":47250,"d":"R47,250"}]
["TILING",{"$nulls":3},{"v":25000,"d":"R25,000"}]
["PLUMBING AND DRAINAGE",{"$nulls":3},{"v":468360,"d":"R468,360"}]
["ELECTRICAL WORK",{"$nulls":3},{"v":298930,"d":"R298,930"}]
["ELECTRONIC INSTALLATIONS",{"$nulls":3},{"v":22000,"d":"R22,000"}]
["MECHANICAL WORK",{"$nulls":3},{"v":168400,"d":"R168,400"}]
["GLAZING",{"$nulls":3},{"v":46200,"d":"R46,200"}]
["PAINTING",{"$nulls":3},{"v":1929480,"d":"R1,929,480"}]
["FENCING             ",{"$nulls":3},0]
["SUB TOTAL",{"$nulls":3},0]
["15% VAT",{"$nulls":3},{"$f":"E523*15/100","v":0}]
["TOTAL TENDER PRICE",{"$nulls":3},{"$f":"E523+E524","v":0}]
[]
["TENDER PRICE IN WORDS"]
[]
[]
["SIGNATURE OF TENDERER"]
["SIGNATURE OF TENDERER"]
["DATE:","DD/MM/20YY"]